[Event "37th ECCC 2022"]
[Site "Mayrhofen"]
[Date "2022.10.03"]
[Round "1.44"]
[White "Mueller, Nick"]
[Black "Santos Latasa, Jaime"]
[Result "0-1"]
[ECO "E81"]
[WhiteElo "2368"]
[BlackElo "2677"]
[Annotator "TA"]
[PlyCount "106"]
[EventDate "2022.10.03"]
[EventType "team-tourn"]
[EventCountry "AUT"]
[SourceTitle "playchess.com"]
[Source "ChessBase"]
[SourceQuality "1"]
[TimeControl "40/5400+30:1800+30"]

{[%evp 24,106,18,4,18,20,25,14,0,0,0,0,0,0,0,0,0,0,0,0,0,0,12,24,63,9,74,16,11,13,81,0,51,0,0,0,0,0,27,15,28,0,0,-33,-39,-34,-27,-66,-57,-63,-76,-81,-69,-65,-75,-58,0,-4,-16,-17,-8,-10,0,-1,0,0,0,-14,-2,-8,-5,-12,-8,-108,-115,-699,-669,-1350,-1215,-4627,-4622,-29968,-29971,-29981,-29982]} 1. d4 {[%emt 0:00:02]} Nf6 {[%emt 0:00:07]} 2. c4 {[%emt 0:00:07]} g6 {[%emt 0:00:15]} 3. Nc3 {[%emt 0:00:26]} Bg7 {[%emt 0:00:06]} 4. e4 {[%emt 0:00:19]} d6 {[%emt 0:00:07]} 5. f3 {[%emt 0:00:21]} O-O {[%emt 0:00:07]} 6. Nge2 {[%emt 0:05:28]} c5 {[%emt 0:00:08]} 7. d5 {[%emt 0:00:16]} e6 {[%emt 0:00:04]} 8. Ng3 {[%emt 0:00:11]} exd5 {[%emt 0:00:07]} 9. cxd5 {[%emt 0:00:07]} a6 {[%emt 0:00:05]} 10. a4 {[%emt 0:00:54]} Nbd7 {[%emt 0:00:05]} 11. Be2 {[%emt 0:03:28]} Rb8 {[%emt 0:01:06]} 12. O-O {[%emt 0:03:18]} Ne8 {[%emt 0:00:06]} 13. Be3 {[%emt 0:09:24]} Nc7 {[%emt 0:01:41] A65: Modern Benoni: 6 e4.} 14. Qd2 {[%emt 0:02:20]} b5 {[%emt 0:00:07]} 15. Bg5 {[%emt 0:04:30]} Qe8 {[%emt 0:00:07] The position is equal.} 16. axb5 {[%emt 0:15:30]} Nxb5 {[%emt 0:00:16]} 17. Nxb5 {[%emt 0:02:36]} axb5 {[%emt 0:00:06]} 18. Ra7 {[%emt 0:06:29]} Qe5 {[%emt 0:03:00]} 19. Kh1 {[%emt 0:04:24]} c4 {[%emt 0:03:20]} 20. Rb1 {[%emt 0:03:08] [#]} Re8 $146 {[%emt 0:15:43]} ({Predecessor:} 20... Qd4 21. Rc7 Qxd2 22. Bxd2 Nf6 23. Bc3 Rd8 24. Ra7 Rd7 25. Ra5 Rc7 26. b3 Nd7 27. Bxg7 Kxg7 {½-½ (64) Jedrzejowski,M (2509)-Mannermaa,J (2459) ICCF email 2016}) 21. Rc7 {[%emt 0:03:18]} Qd4 {[%emt 0:04:02]} 22. Qc1 {[%emt 0:01:22]} Qb6 {[%emt 0:14:25]} 23. Rc6 {[%emt 0:00:15]} Qb7 {[%emt 0:00:07]} 24. Rxd6 {[%emt 0:00:55]} (24. Be3 $1 $14) 24... Nc5 {[%emt 0:01:45]} (24... Bf8 $1 $11 25. Bf4 (25. Rc6 Ne5 $11) 25... Bxd6 26. Bxd6 Ra8) 25. Bf6 {[%emt 0:02:19]} ({White should try} 25. Be3 $16 Nb3 26. Qg1) 25... Bxf6 $11 {[%emt 0:07:12]} 26. Rxf6 {[%emt 0:00:08]} Nd7 {[%emt 0:00:10]} (26... Qe7 $11 {remains equal.} 27. Rc6 Bd7) 27. Rf4 {[%emt 0:03:05]} (27. Rd6 $16) 27... Qb6 {[%emt 0:02:20]} (27... Qc7 $1 $11) 28. Rh4 {[%emt 0:02:26]} ({White should play} 28. b3 $14) 28... Qf6 {[%emt 0:00:26]} 29. Qh6 {[%emt 0:01:32]} Qg7 {[%emt 0:00:34]} 30. Qe3 {[%emt 0:02:50]} Bb7 {[%emt 0:01:44]} 31. Qc3 {[%emt 0:01:32]} Ba6 {[%emt 0:03:44]} 32. f4 {[%emt 0:06:06] aiming for e5.} Qf6 {[%emt 0:03:58]} 33. Rh3 {[%emt 0:12:39] [#] Qd2 is the strong threat.} Qxc3 {[%emt 0:07:57]} 34. bxc3 {[%emt 0:00:02]} Nf6 {[%emt 0:00:07]} 35. e5 {[%emt 0:03:56]} Nxd5 {[%emt 0:00:24]} 36. Ne4 {[%emt 0:00:09]} Bc8 {[%emt 0:01:00]} 37. Bxc4 {[%emt 0:01:22]} Bxh3 {[%emt 0:01:30]} 38. Bxd5 {[%emt 0:00:02]} Bf5 {[%emt 0:00:07] Strongly threatening ...Bxe4.} 39. Nf6+ {[%emt 0:00:32]} Kf8 {[%emt 0:00:07]} (39... Kh8 $15 40. Ra1 Re7) 40. Ra1 $1 {[%emt 0:01:29]} Re7 {[%emt 0:00:55]} 41. Nxh7+ {[%emt 0:01:31]} Kg7 {[%emt 0:00:05]} 42. Nf6 {[%emt 0:06:45]} Rc7 {[%emt 0:00:43] White should prevent ...Rd8.} 43. h4 {[%emt 0:01:52]} Rbc8 {[%emt 0:05:39]} 44. Ra5 {[%emt 0:05:31]} Bd3 {[%emt 0:00:23]} 45. h5 {[%emt 0:01:46]} gxh5 {[%emt 0:00:42]} 46. Nxh5+ {[%emt 0:00:29]} Kf8 {[%emt 0:02:05]} 47. Nf6 {[%emt 0:04:49]} Rxc3 {[%emt 0:01:45]} 48. f5 {[%emt 0:00:49]} (48. Ra6 $11) 48... b4 {[%emt 0:02:43][%cal Bb5b4,Bb4a3][%mdl 32] White must now prevent ...Ra3.} 49. e6 $2 {[%emt 0:06:13][%mdl 8192] White does not recover from this.} (49. Ra4 $17) 49... Ra3 $19 {[%emt 0:04:00]} 50. Rxa3 {[%emt 0:03:38]} bxa3 {[%emt 0:00:15]} 51. exf7 {[%emt 0:00:03]} Bxf5 {[%emt 0:01:36] ( -> ...Rd8)} 52. g4 {[%emt 0:00:16] [#]} Rd8 $1 {[%emt 0:00:24]} 53. Bb3 {[%emt 0:00:38]} (53. gxf5 Rxd5) 53... Bg6 {[%emt 0:00:09] Weighted Error Value: White=0.69/Black=0.11 (very precise)} 0-1

[Event "37th ECCC 2022"]
[Site "Mayrhofen"]
[Date "2022.10.03"]
[Round "1.45"]
[White "Idani, Pouya"]
[Black "Rietze, Clemens"]
[Result "1-0"]
[ECO "B13"]
[WhiteElo "2623"]
[BlackElo "2299"]
[Annotator "TA"]
[PlyCount "49"]
[EventDate "2022.10.03"]
[EventType "team-tourn"]
[EventCountry "AUT"]
[SourceTitle "playchess.com"]
[Source "ChessBase"]
[SourceQuality "1"]
[TimeControl "40/5400+30:1800+30"]

{[%evp 10,49,27,20,35,29,26,30,33,39,46,15,23,15,34,8,44,41,52,45,58,60,52,41,52,19,28,19,42,2,108,110,114,112,376,402,369,388,29996,29997,29997,29998]} 1. e4 {[%emt 0:00:01]} c6 {[%emt 0:00:06]} 2. d4 {[%emt 0:00:05]} d5 {[%emt 0:00:06]} 3. exd5 {[%emt 0:00:04]} cxd5 {[%emt 0:00:04]} 4. Bd3 {[%emt 0:00:05]} Nc6 {[%emt 0:00:04]} 5. c3 {[%emt 0:00:04]} Qc7 {[%emt 0:00:08]} 6. h3 {[%emt 0:00:09]} e6 {[%emt 0:00:08] B13: Caro-Kann: Exchange Variation and Panov-Botvinnik Attack.} 7. Nf3 {[%emt 0:00:07]} Bd6 {[%emt 0:00:04]} 8. O-O {[%emt 0:00:05]} Nge7 {[%emt 0:00:06] White has an edge.} 9. Re1 {[%emt 0:00:26]} Bd7 {[%emt 0:00:11]} 10. Na3 $5 {[%emt 0:01:55][%mdl 4] next Nb5 is good for White. An interesting side line.} a6 {[%emt 0:00:40] Prevents Nb5.} 11. Nc2 {[%emt 0:00:33] [#]} O-O $146 {[%emt 0:09:35]} ({Predecessor:} 11... f6 12. Nh4 O-O-O 13. Nf3 g5 14. b4 h5 15. a4 g4 16. Nh4 gxh3 17. b5 Na5 18. bxa6 {0-1 (27) Vokhidov,S (2526)-Fedoseev,V (2672) Chess.com INT 2019}) 12. b3 {[%emt 0:01:28][%cal Bb2b3,Bb3c4,Bc4c5][%mdl 32]} (12. Ng5 $5 {[%cal Rd3h7]} h6 13. Nf3 $11) 12... h6 {[%emt 0:24:39]} 13. c4 {[%emt 0:00:36]} dxc4 {[%emt 0:01:01]} 14. bxc4 {[%emt 0:00:05]} b5 {[%emt 0:08:36]} 15. c5 {[%emt 0:02:33]} ({But not} 15. cxb5 axb5 16. Bd2 Nd5 $11) 15... Bf4 {[%emt 0:00:10]} 16. Bxf4 {[%emt 0:04:11]} Qxf4 {[%emt 0:00:09]} 17. Re4 {[%emt 0:05:27]} (17. Be4 $5 {[%cal Rf3e5]}) 17... Qc7 {[%emt 0:06:23]} 18. Qd2 {[%emt 0:06:53]} Nd5 {[%emt 0:07:25]} 19. Ne3 {[%emt 0:01:23]} Nce7 {[%emt 0:26:17]} (19... Nde7 $11 {keeps the balance.}) 20. Nxd5 $16 {[%emt 0:08:02]} Nxd5 {[%emt 0:00:03]} 21. Rg4 $40 {[%emt 0:16:17][%mdl 128] Qxh6 would kill now. White is out for blood.} f5 $2 {[%emt 0:08:15][%mdl 8192] [#] This move loses the game for Black.} (21... Kh8 $16) 22. Qxh6 $1 $18 {[%emt 0:00:06][%csl Gh6][%cal Rg4g7]} Rf7 {[%emt 0:06:02]} 23. Ne5 {[%emt 0:04:15] Qh5 is the strong threat. Really sharp!} fxg4 $2 {[%emt 0:00:30]} (23... Raf8 $18 24. Rg3 (24. Nxf7 fxg4 25. Qh5 Rxf7 $11) 24... Re7) 24. Qh7+ {[%emt 0:00:06]} Kf8 {[%emt 0:00:03]} 25. Ng6+ {[%emt 0:00:06] Weighted Error Value: White=0.09 (flawless) /Black=0.68} 1-0

[Event "37th ECCC 2022"]
[Site "Mayrhofen"]
[Date "2022.10.03"]
[Round "1.46"]
[White "Giemsa, Stephan"]
[Black "Alonso Rosell, Alvar"]
[Result "0-1"]
[ECO "A40"]
[WhiteElo "2263"]
[BlackElo "2563"]
[Annotator "TA"]
[PlyCount "78"]
[EventDate "2022.10.03"]
[EventType "team-tourn"]
[EventCountry "AUT"]
[SourceTitle "playchess.com"]
[Source "ChessBase"]
[SourceQuality "1"]
[TimeControl "40/5400+30:1800+30"]

{[%evp 9,78,17,29,11,24,24,25,12,38,36,34,37,61,50,61,68,64,59,46,49,59,50,45,37,57,55,131,91,99,57,69,77,76,34,88,83,87,70,83,83,95,75,79,75,108,69,191,130,254,223,232,-66,-70,-106,-106,-100,-86,-83,-92,-201,-200,-233,-234,-240,-242,-281,-284,-425,-419,-356,-342]} 1. d4 {[%emt 0:00:04]} Nf6 {[%emt 0:00:24]} 2. c4 {[%emt 0:00:08]} e6 {[%emt 0:00:10]} 3. g3 {[%emt 0:00:05]} Bb4+ {[%emt 0:05:07]} 4. Bd2 {[%emt 0:01:54]} a5 {[%emt 0:00:45]} 5. Bg2 {[%emt 0:02:42]} d6 {[%emt 0:07:41]} 6. e3 {[%emt 0:08:44] E00: Catalan Bogo-Indian (3 g3 Bb4+).} O-O {[%emt 0:06:42]} 7. Ne2 {[%emt 0:04:07]} e5 {[%emt 0:00:06]} 8. O-O {[%emt 0:05:24] White has an edge.} Bxd2 {[%emt 0:04:02]} 9. Qxd2 {[%emt 0:08:49]} Nc6 {[%emt 0:23:54]} 10. Nbc3 {[%emt 0:06:19]} exd4 {[%emt 0:00:55]} 11. exd4 {[%emt 0:03:26] [#]} Bf5 $146 {[%emt 0:02:42]} ({Predecessor:} 11... Re8 12. h3 Bf5 13. g4 Ne4 14. Bxe4 Bxe4 15. Ng3 Bg6 16. f4 f6 17. d5 Nb4 {0-1 (59) Merry,A (2388)-Miezis,N (2505) Crawley 2016}) 12. Nf4 {[%emt 0:05:39]} a4 {[%emt 0:10:54]} 13. Nfd5 {[%emt 0:04:56]} Nxd5 {[%emt 0:06:41]} 14. Nxd5 {[%emt 0:00:13]} Qd7 {[%emt 0:00:48]} 15. Rfe1 {[%emt 0:07:49]} Rfe8 {[%emt 0:01:40]} 16. Qf4 {[%emt 0:03:45]} Bg6 {[%emt 0:10:45]} 17. h4 {[%emt 0:02:05]} a3 {[%emt 0:10:15]} (17... h6 $14) 18. bxa3 {[%emt 0:08:47]} h6 {[%emt 0:00:37]} 19. Re3 {[%emt 0:10:51]} Rxe3 {[%emt 0:00:27]} 20. Qxe3 {[%emt 0:00:49]} Re8 {[%emt 0:01:36]} 21. Qf4 {[%emt 0:01:52]} Nd8 {[%emt 0:00:52]} (21... Ra8 $14) 22. Qd2 $16 {[%emt 0:04:55]} Ne6 {[%emt 0:00:12]} 23. Ne3 {[%emt 0:02:56]} b6 {[%emt 0:02:31]} 24. Nd5 {[%emt 0:00:50]} Qa4 {[%emt 0:01:36][%csl LRa3,LRc4]} 25. Qc3 {[%emt 0:01:35]} Kf8 {[%emt 0:00:00]} 26. Re1 {[%emt 0:00:53]} Bf5 {[%emt 0:01:30]} 27. Kh2 {[%emt 0:00:36]} Qa7 {[%emt 0:00:28]} (27... Qa5 $14) 28. Ne3 {[%emt 0:01:04]} ({White should try} 28. Qf3 $18 Bh7 29. Bh3) 28... Bg6 {[%emt 0:00:01]} (28... Bh7 $16 29. Bc6 Rd8) 29. Bc6 {[%emt 0:00:16]} Rb8 {[%emt 0:00:36]} 30. f4 $2 {[%emt 0:02:20] [#]} (30. Nd5 $18) 30... Qa5 $15 {[%emt 0:00:33]} 31. Qxa5 {[%emt 0:01:00]} bxa5 {[%emt 0:00:01]} 32. f5 {[%emt 0:00:56]} Nxd4 {[%emt 0:00:07]} 33. fxg6 {[%emt 0:00:23] [#] And now Bd5 would win.} Nxc6 $17 {[%emt 0:00:07][%mdl 4096] Endgame KRN-KRN} 34. Nd5 {[%emt 0:00:23]} (34. gxf7 $17 Rb2+ 35. Kh3) 34... Ne5 $19 {[%emt 0:00:34] Threatens to win with ...Nf3+.} (34... fxg6 35. Rf1+ Kg8 36. Nxc7 $17) 35. Re2 {[%emt 0:00:45]} c6 {[%emt 0:00:24]} ({And not} 35... fxg6 36. c5 $17) ({Worse is} 35... Nxc4 36. Nxc7 fxg6 37. Rf2+ Ke7 38. Kh3) 36. Nf4 {[%emt 0:00:22][%cal Oc4c5]} Nxc4 {[%emt 0:00:38]} ({Stronger than} 36... fxg6 37. c5 Ke7 38. Kh3 $17) 37. gxf7 {[%emt 0:00:22]} Kxf7 {[%emt 0:00:09]} 38. h5 {[%emt 0:00:40]} (38. g4 $142) 38... Rb2 {[%emt 0:00:43]} 39. Rxb2 {[%emt 0:00:37]} Nxb2 {[%emt 0:00:03] Quite a comeback for Black.  Weighted Error Value: White=0.37/Black=0.18 (very precise)} 0-1

[Event "37th ECCC 2022"]
[Site "Mayrhofen"]
[Date "2022.10.03"]
[Round "1.47"]
[White "Forcen Esteban, Daniel"]
[Black "Acikel, Mert"]
[Result "1-0"]
[ECO "A08"]
[WhiteElo "2566"]
[BlackElo "2197"]
[Annotator "TA"]
[PlyCount "71"]
[EventDate "2022.10.03"]
[EventType "team-tourn"]
[EventCountry "AUT"]
[SourceTitle "playchess.com"]
[Source "ChessBase"]
[SourceQuality "1"]
[TimeControl "40/5400+30:1800+30"]

{[%evp 17,71,0,0,0,20,13,43,50,65,23,16,13,12,21,14,12,24,19,19,0,0,0,0,0,13,0,0,0,0,0,0,-11,0,0,0,-14,-10,-40,0,0,0,0,0,0,0,0,0,0,0,0,0,0,1370,1357,1206,1162]} 1. Nf3 {[%emt 0:00:03]} d5 {[%emt 0:00:49]} 2. g3 {[%emt 0:00:08]} Nf6 {[%emt 0:00:10]} 3. Bg2 {[%emt 0:00:04]} e6 {[%emt 0:00:17]} 4. O-O {[%emt 0:00:06]} Be7 {[%emt 0:00:29]} 5. d3 {[%emt 0:00:18]} O-O {[%emt 0:00:40]} 6. Nbd2 {[%emt 0:00:05]} c5 {[%emt 0:04:12]} 7. e4 {[%emt 0:00:08]} Nc6 {[%emt 0:00:58]} 8. Re1 {[%emt 0:00:12]} b5 {[%emt 0:00:17]} 9. exd5 {[%emt 0:00:41]} exd5 {[%emt 0:01:16]} 10. Nb3 {[%emt 0:01:56] C00: French: Unusual White 2nd moves.} Be6 {[%emt 0:09:52] [#]} 11. Be3 $146 {[%emt 0:35:38]} ({Predecessor:} 11. Bf4 Rc8 12. h3 d4 13. a4 a6 14. axb5 axb5 15. Ne5 Nxe5 16. Bxe5 Nd5 17. g4 Bd6 {1-0 (36) Huzman,A (2561)-Delorme,A (2480) Tornelo INT 2021}) 11... d4 {[%emt 0:11:36]} 12. Bg5 {[%emt 0:00:33] White is slightly better.} Qb6 {[%emt 0:08:35]} 13. Ne5 {[%emt 0:02:59]} Nxe5 {[%emt 0:10:47]} 14. Bxa8 {[%emt 0:09:58]} Rxa8 {[%emt 0:00:18]} 15. Rxe5 {[%emt 0:00:05] next Qf3 is good for White.} Nd7 $1 {[%emt 0:00:18][%cal Bf6d7,Bd7e5,Be5g4][%mdl 32]} 16. Rxe6 {[%emt 0:04:02]} (16. Bxe7 Nxe5 17. Qh5 (17. Bxc5 $2 Qc6 $19) (17. Nxc5 $2 Bg4 $19) 17... Qc7 $15) 16... Qxe6 {[%emt 0:00:28]} 17. Qf3 {[%emt 0:03:37]} Re8 {[%emt 0:09:56]} 18. Bd2 {[%emt 0:02:52]} (18. Bxe7 {seems wilder.} Ne5 19. Qe4 Qxe7 20. a4) 18... Ne5 {[%emt 0:02:00]} 19. Qe4 {[%emt 0:01:55]} f5 {[%emt 0:04:08]} 20. Qg2 {[%emt 0:08:19] aiming for Re1.} Rd8 {[%emt 0:06:44]} 21. f4 {[%emt 0:06:33]} Ng4 {[%emt 0:02:17]} 22. Re1 {[%emt 0:00:39][%cal Ba1e1,Be1e3,Be3e5,Be5d5][%mdl 32]} Qd7 {[%emt 0:00:37]} ({Resist} 22... Ne3 23. c3 $14 (23. Qf2 Bf6 $14)) 23. Na5 {[%emt 0:05:52] Prevents c4.} Rc8 {[%emt 0:05:49] Inhibits Nc6.} 24. h3 {[%emt 0:00:07]} Ne3 {[%emt 0:03:11]} 25. Bxe3 {[%emt 0:01:25]} dxe3 {[%emt 0:00:04]} 26. Rxe3 {[%emt 0:03:10][%cal Oa5c6]} c4 {[%emt 0:00:34]} 27. Kh2 {[%emt 0:02:23]} (27. Qb7 $2 Qxb7 28. Nxb7 Rc7 29. dxc4 Rxb7 $19) 27... Bc5 {[%emt 0:03:01]} 28. Re5 {[%emt 0:00:10]} Bb6 {[%emt 0:06:30]} 29. Rd5 {[%emt 0:01:21]} Qe8 {[%emt 0:04:34] [#] Hoping for ...cxd3.} 30. Nb7 {[%emt 0:01:00]} cxd3 {[%emt 0:00:09]} 31. Rxd3 {[%emt 0:02:15] Threatens to win with Nd6.} Qe1 $1 {[%emt 0:00:51][%cal Oc8c2] ( -> ...Rxc2!)} 32. h4 $1 $36 {[%emt 0:03:15][%mdl 2048] Strongly threatening Nd6. White is more active.} Rxc2 {[%emt 0:04:29]} 33. Rd8+ {[%emt 0:00:04]} Bxd8 {[%emt 0:00:04]} 34. Qxc2 {[%emt 0:00:04]} Bf6 {[%emt 0:00:57][%mdl 8192] [#]} (34... Be7 $11) 35. Qc8+ $18 {[%emt 0:00:21]} Kf7 {[%emt 0:00:29]} 36. Nd6+ {[%emt 0:00:05] Weighted Error Value: White=0.05 (flawless) /Black=0.05 (flawless)} 1-0

[Event "37th ECCC 2022"]
[Site "Mayrhofen"]
[Date "2022.10.03"]
[Round "1.48"]
[White "Dimitrijeski, Kristian"]
[Black "Bernadskiy, Vitaliy"]
[Result "0-1"]
[ECO "C01"]
[WhiteElo "2154"]
[BlackElo "2570"]
[Annotator "TA"]
[PlyCount "90"]
[EventDate "2022.10.03"]
[EventType "team-tourn"]
[EventCountry "AUT"]
[SourceTitle "playchess.com"]
[Source "ChessBase"]
[SourceQuality "1"]
[TimeControl "40/5400+30:1800+30"]

{[%evp 12,90,12,2,4,6,-4,-49,-14,-60,-33,-74,-79,-78,-79,-108,-98,-122,-107,-108,-112,-108,-100,-99,-99,-99,-99,-109,-86,-86,-81,-86,-85,-93,-77,-82,-87,-89,-89,-93,-90,-113,-108,-185,-140,-136,-112,-104,-98,-104,-97,-126,-94,-101,-126,-131,-131,-131,-94,-97,-70,-110,-121,-363,-362,-313,-220,-953,-823,-1282,-670,-29974,-29975,-29975,-29979,-29979,-29980,-29980,-29981,-29981,-29982]} 1. d4 {[%emt 0:00:03]} e6 {[%emt 0:00:15][%cal Be7e6,Be6d5,Bd5c4][%mdl 32]} 2. e4 {[%emt 0:00:43]} d5 {[%emt 0:00:07]} 3. exd5 {[%emt 0:00:07]} exd5 {[%emt 0:00:04]} 4. Nf3 {[%emt 0:00:00]} Nc6 {[%emt 0:00:03]} 5. Bb5 Bd6 6. O-O {[%emt 0:01:55]} Nge7 {[%emt 0:01:19]} 7. c4 {[%emt 0:02:32]} dxc4 {[%emt 0:00:11] C01: French: Exchange Variation.} 8. Nc3 {[%emt 0:13:03]} O-O {[%emt 0:02:30] [#]} 9. Bg5 $146 {[%emt 0:01:19]} ({Predecessor:} 9. Bxc4 Bg4 10. d5 Ne5 11. Be2 N5g6 12. h3 Bc8 13. Qb3 Nf4 14. Bxf4 Bxf4 15. Qc4 {0-1 (64) Svidinsky,D (2112)-Murtazin,B (2404) St Petersburg 2018}) 9... h6 {[%emt 0:06:23] Black is slightly better.} 10. Bh4 {[%emt 0:00:45]} (10. Bxe7 $11 {might be stronger.} Bxe7 11. Bxc6 bxc6 12. Ne5) 10... Bg4 {[%emt 0:06:14]} 11. Bxc6 {[%emt 0:02:58]} bxc6 {[%emt 0:00:11]} 12. h3 {[%emt 0:05:02]} Be6 {[%emt 0:03:05]} 13. Ne5 {[%emt 0:07:40]} Bxe5 {[%emt 0:07:25]} 14. dxe5 {[%emt 0:05:15]} Qxd1 {[%emt 0:00:51]} 15. Raxd1 {[%emt 0:02:24]} Nf5 {[%emt 0:00:06]} 16. Bg3 {[%emt 0:00:36]} Rab8 {[%emt 0:02:07]} 17. Rd2 {[%emt 0:01:31]} Nxg3 {[%emt 0:00:05]} 18. fxg3 {[%emt 0:00:05]} Rfd8 {[%emt 0:00:02]} 19. Rfd1 {[%emt 0:05:48]} Rxd2 {[%emt 0:01:34]} 20. Rxd2 $17 {[%emt 0:00:07][%mdl 4096] Endgame KRB-KRN} h5 {[%emt 0:01:11]} 21. Kf2 {[%emt 0:02:24]} Kf8 {[%emt 0:04:38]} 22. Ke3 {[%emt 0:01:06]} Ke7 {[%emt 0:00:05]} 23. Kf4 {[%emt 0:03:48]} g6 {[%emt 0:04:38]} 24. a3 {[%emt 0:13:03]} Bf5 {[%emt 0:03:38]} 25. Ne2 {[%emt 0:10:14]} Bd3 {[%emt 0:01:10]} 26. Nc1 {[%emt 0:04:26]} Ke6 {[%emt 0:03:43]} 27. Ne2 {[%emt 0:06:59]} (27. Nxd3 $17 cxd3 28. Ke4) 27... Bxe2 {[%emt 0:04:13]} 28. Rxe2 $19 {[%emt 0:00:05] KR-KR} Rd8 {[%emt 0:00:33]} 29. Re4 {[%emt 0:01:04]} Rd2 {[%emt 0:03:25][%csl LRb2,LRg2] ...Kd5 is the strong threat.} 30. Rxc4 {[%emt 0:00:10]} Kd5 {[%emt 0:00:03] Black is more active.} (30... Rxb2 $6 31. Rxc6+ Kd5 32. Rxc7 $11) 31. Ra4 {[%emt 0:03:29]} Rf2+ {[%emt 0:02:00]} ({Inferior is} 31... Rxg2 32. b4 $15) 32. Ke3 {[%emt 0:00:29]} Rxg2 {[%emt 0:01:00]} 33. Kf3 {[%emt 0:00:02]} Rxb2 {[%emt 0:01:40]} 34. Rxa7 {[%emt 0:00:04]} c5 {[%emt 0:00:32]} 35. Rxc7 {[%emt 0:00:12]} c4 {[%emt 0:00:07]} ({Much weaker is} 35... Kxe5 $6 36. Rxc5+ Kd4 37. Ra5 $11) 36. Rxf7 {[%emt 0:00:48]} Kxe5 {[%emt 0:00:37] Hoping for ...Kd4.} 37. Re7+ $2 {[%emt 0:04:13] [#] This costs White the game.} (37. a4 $17) 37... Kd4 $1 {[%emt 0:00:19] White must now prevent ...c3.} 38. Rd7+ {[%emt 0:01:30] [#]} Kc3 $1 {[%emt 0:00:16]} 39. Rd6 $2 {[%emt 0:00:42]} (39. a4) 39... Rb3 {[%emt 0:00:19]} 40. Rxg6 {[%emt 0:00:37]} Kb2+ {[%emt 0:00:03]} 41. Kf4 {[%emt 0:07:25]} c3 {[%emt 0:00:07] Black mates.} 42. Rc6 {[%emt 0:00:12]} c2 {[%emt 0:00:04]} 43. Rxc2+ {[%emt 0:00:06]} Kxc2 {[%emt 0:00:03]} 44. a4 {[%emt 0:02:57]} Ra3 {[%emt 0:01:26]} 45. Kg5 {[%emt 0:07:57]} Rxg3+ {[%emt 0:00:28] Weighted Error Value: White=0.62/Black=0.15 (very precise)} 0-1